bitfinex/quotes_ETHUSD_20240921
["timestamp","ask_amount","ask_price","bid_price","bid_amount"]
[1726881538520,0.55,2558.3,2557.2,0.30497825]
[1726881538819,0.04283279,2558.2,2557.4,2.4644]
[1726881539019,0.04283279,2558.2,2557.6,2.4644]
[1726881539262,0.0444187,2558.5,2557.7,0.79049647]
[1726881539554,0.0444187,2558.5,2557.8,2.4644]
[1726881539755,0.0444187,2558.5,2557.9,0.07817489]
[1726881540278,0.0444187,2558.5,2557.8,4.58062976]
[1726881540560,0.0444187,2558.5,2558.0,2.4644]
[1726881542072,0.0444187,2558.5,2558.1,0.07817241]
[1726881542563,0.0444187,2558.5,2558.2,2.4644]
[1726881543144,0.0444187,2558.5,2558.3,0.07815638]
[1726881543342,0.0444187,2558.5,2558.4,2.4644]
[1726881543520,0.0444187,2558.5,2558.4,7.04502976]
[1726881543837,0.0444187,2558.5,2558.4,7.75734819]
[1726881545568,0.0444187,2558.5,2558.4,0.71231843]
[1726881545771,0.0444187,2558.5,2558.1,7.58062976]
[1726881545924,0.0444187,2558.5,2558.2,5.4644]
[1726881546119,0.0444187,2558.5,2558.3,2.4644]
[1726881546370,0.0444187,2558.5,2558.4,7.12318443]
[1726881546665,0.0444187,2558.5,2558.4,7.04502976]
[1726881546826,0.0444187,2558.5,2558.4,7.74953274]
[1726881548135,7.37,2559.0,2558.5,3.0]
[1726881548358,7.3888329,2559.0,2558.9,7.04502976]
[1726881548527,0.0188329,2559.0,2558.9,10.04502976]
[1726881548726,0.0188329,2559.0,2558.9,11.04953274]
[1726881550041,0.0188329,2559.0,2558.9,3.46890298]
[1726881550245,0.0188329,2559.0,2558.9,2.4644]
[1726881550450,0.0188329,2559.0,2558.9,7.12316786]
[1726881550648,0.0188329,2559.0,2558.9,7.04502976]
[1726881551082,0.0188329,2559.0,2558.9,7.12316236]
[1726881551683,0.0188329,2559.0,2558.9,7.04502976]
[1726881551855,0.0188329,2559.0,2558.9,3.16890298]
[1726881552044,0.0188329,2559.0,2558.9,2.4644]
[1726881554078,0.0188329,2559.0,2558.4,0.70450298]
[1726881554079,0.0188329,2559.0,2558.5,2.56863754]
[1726881554241,2.4523329,2559.0,2558.2,2.4905]
[1726881555427,0.55,2558.9,2557.9,2.3129]
[1726881555768,0.55,2558.9,2558.0,0.07816958]
[1726881555769,0.5688329,2558.9,2558.0,0.07816958]
[1726881556330,0.5688329,2558.9,2557.9,2.54419]
[1726881557228,0.5688329,2558.9,2557.9,2.3129]
[1726881557874,0.55,2558.7,2557.6,2.3129]
[1726881558675,0.5688329,2558.7,2557.6,2.3129]
[1726881559547,2.3676,2558.6,2557.6,2.3129]
[1726881559754,0.55,2558.5,2557.6,2.3129]
[1726881559958,0.55,2558.5,2557.7,0.53129]
[1726881560778,2.3864329,2558.6,2557.3,2.3129]
[1726881560779,0.55,2558.3,2557.3,2.3129]
[1726881561702,0.55,2558.4,2557.0,2.3129]
[1726881561850,0.55,2558.0,2557.0,2.3129]
[1726881563092,0.55,2558.0,2557.1,4.65882412]
[1726881563404,0.55,2558.0,2557.2,0.69717241]
[1726881563748,0.55,2558.0,2557.3,0.07818772]
[1726881564178,0.55,2558.0,2557.2,0.69717241]
[1726881565696,2.3676,2557.9,2556.6,2.3129]
[1726881565858,0.55,2557.6,2556.6,2.3129]
[1726881566264,0.55,2557.4,2556.6,2.3129]
[1726881567898,0.55,2557.4,2556.7,0.07821397]
[1726881568067,0.55,2557.4,2556.7,0.2391114]
[1726881569004,0.55,2557.4,2556.8,0.07821403]
[1726881569202,0.55,2557.4,2556.7,0.2391114]
[1726881569886,0.55,2557.4,2556.7,0.3173208]
[1726881570907,0.55,2557.4,2556.8,0.07820477]
[1726881571104,7.37,2557.9,2556.8,0.07820477]
[1726881571410,2.394,2557.8,2556.9,2.4375]
[1726881571566,2.394,2557.8,2557.0,0.32976861]
[1726881572020,7.37,2557.9,2557.1,4.65882791]
[1726881572311,2.394,2558.1,2557.2,2.4375]
[1726881572616,7.37,2558.3,2557.4,4.58062976]
[1726881572773,7.37,2558.3,2557.5,2.4375]
[1726881573089,7.37,2558.3,2557.6,0.70181298]
[1726881573661,7.37,2558.3,2557.5,2.4375]
[1726881574107,0.55,2558.2,2557.5,2.4375]
[1726881577112,0.55,2558.3,2557.5,2.4375]
[1726881579676,0.55,2558.1,2557.1,2.2923]
[1726881580008,0.55,2557.9,2557.1,2.2923]
[1726881580313,0.55,2557.9,2556.5,4.58062976]
[1726881580314,0.55,2557.9,2556.8,2.2923]
[1726881580475,0.55,2557.9,2556.9,0.25314114]
[1726881581610,0.55,2557.9,2557.0,2.2923]
[1726881582373,0.55,2557.9,2557.0,2.3705007]
[1726881585173,0.55,2557.9,2557.0,3.0782007]
[1726881585376,0.55,2557.9,2557.1,2.2923]
[1726881585614,0.55,2557.9,2557.2,0.6152418]
[1726881585776,0.55,2558.2,2557.2,0.6152418]
[1726881585973,0.55,2558.2,2557.2,0.53705007]
[1726881587839,0.55,2558.0,2557.2,0.53705007]
[1726881588939,0.55,2558.0,2557.3,2.2923]
[1726881589241,0.55,2558.0,2557.4,0.36894207]
[1726881589745,7.37,2558.3,2557.4,0.36894207]
[1726881589932,7.37,2558.3,2557.4,7.94957183]
[1726881590108,7.37,2558.3,2557.6,2.3082]
[1726881590307,7.37,2558.3,2557.7,0.07817865]
[1726881590505,0.0188329,2558.6,2557.7,3.61681651]
[1726881590829,0.0188329,2558.6,2557.8,2.3082]
[1726881591000,0.0188329,2558.6,2557.9,0.07816845]
[1726881592244,0.0188329,2558.6,2558.1,2.3082]
[1726881592548,0.0188329,2558.6,2558.2,0.07815853]
[1726881592714,0.0188329,2558.6,2558.2,1.07485736]
[1726881596616,0.0188329,2558.6,2558.2,0.99669883]
[1726881597259,2.3581329,2558.6,2557.8,5.3284]
[1726881599452,2.3581329,2558.6,2557.8,2.3284]
[1726881599823,2.3581329,2558.6,2557.8,6.90902976]
[1726881600349,0.0188329,2558.6,2557.8,6.90902976]
[1726881600553,0.0188329,2558.6,2557.9,0.07816932]
[1726881600856,0.0188329,2558.6,2557.9,3.75258369]
[1726881602027,0.0188329,2558.6,2558.0,3.7194882]
[1726881603359,2.3393,2558.5,2557.6,6.0478882]
[1726881603560,2.3393,2558.5,2557.7,0.07817488]
[1726881603858,2.3393,2558.5,2557.7,0.61260631]
[1726881605462,2.3393,2558.5,2557.6,6.0478882]
[1726881605463,0.55,2558.4,2557.6,3.7194882]
[1726881605662,0.55,2558.4,2557.4,7.01024291]
[1726881606852,0.55,2558.4,2557.6,3.7194882]
[1726881607322,2.3393,2558.5,2558.0,3.7194882]
[1726881607526,0.0188329,2558.6,2558.2,3.7194882]
[1726881607827,0.0188329,2558.6,2558.3,0.45011521]
[1726881608536,0.0188329,2558.6,2558.4,3.7194882]
[1726881610821,0.0188329,2558.6,2558.4,6.21025246]
[1726881611320,0.0188329,2558.6,2558.4,6.1320882]
[1726881611498,0.0188329,2558.6,2558.5,0.07815518]
[1726881611702,0.0188329,2558.6,2558.5,3.7363744]
[1726881611923,0.0188329,2558.6,2558.5,6.1489744]
[1726881612224,7.37,2559.2,2558.6,2.4126]
[1726881612377,0.0378858,2559.4,2559.2,2.4126]
[1726881612575,0.0378858,2559.4,2559.3,3.7194882]
[1726881612816,0.0378858,2559.4,2559.3,4.33269702]
[1726881614277,0.0378858,2559.4,2559.3,7.33269702]
[1726881614489,0.0378858,2559.4,2559.3,7.41081812]
[1726881614905,0.0378858,2559.4,2559.3,9.73301812]
[1726881615118,0.0378858,2559.4,2559.3,9.65489702]
[1726881616417,37.37,2560.0,2559.5,2.3222]
[1726881616721,37.37,2560.0,2559.4,3.0]
[1726881616722,30.0,2560.0,2559.9,9.0416882]
[1726881620341,30.0,2560.0,2559.9,2.3222]
[1726881622433,30.0,2560.0,2559.8,3.0]
[1726881622946,30.0,2560.0,2559.7,3.7194882]
[1726881622947,30.0,2560.0,2559.6,2.85442]
[1726881623243,30.0,2560.0,2559.6,6.0416882]
[1726881623441,30.0,2560.0,2559.8,3.7194882]
[1726881626534,30.0,2560.0,2559.9,3.0]
[1726881626737,30.0,2560.0,2559.3,3.7194882]
[1726881626940,30.0,2560.0,2559.5,3.7194882]
[1726881627112,30.0,2560.0,2559.7,3.7194882]
[1726881627647,30.0,2560.0,2559.8,0.07812096]
[1726881627818,30.0,2560.0,2559.7,3.7194882]
[1726881628937,30.0,2560.0,2559.7,3.79760736]
[1726881629112,30.0,2560.0,2559.8,0.37976074]
[1726881630222,30.0,2560.0,2559.7,3.7194882]
[1726881631224,32.3635,2560.0,2559.7,3.7194882]
[1726881631431,32.3635,2560.0,2559.5,3.0]
[1726881632117,32.3635,2560.0,2559.4,0.60416882]
[1726881632613,0.06821699,2559.9,2559.4,0.60416882]
[1726881635849,0.06821699,2559.9,2559.5,3.36041688]
[1726881636161,0.06821699,2559.9,2559.6,3.79761394]
[1726881636362,0.06821699,2559.9,2559.6,3.7194882]
[1726881636570,0.06821699,2559.9,2559.8,3.7194882]
[1726881637354,0.06821699,2559.9,2559.6,3.79761396]
[1726881637663,0.06821699,2559.9,2559.7,0.71580308]
[1726881638114,0.06821699,2559.9,2559.8,3.7194882]
[1726881639149,0.06821699,2559.9,2559.5,3.36041688]
[1726881639353,2.3042,2559.8,2559.5,3.36041688]
[1726881639530,2.3042,2559.8,2559.5,0.36041688]
[1726881639860,0.06869632,2559.7,2559.5,0.36041688]
[1726881640072,2.3042,2559.8,2559.5,0.36041688]
[1726881640256,0.06869632,2559.7,2559.5,0.36041688]
[1726881640429,2.3042,2559.8,2559.5,0.36041688]
[1726881640764,0.06869632,2559.7,2558.8,6.1245882]
[1726881641347,2.3042,2559.6,2558.8,6.1245882]
[1726881641761,0.06860815,2559.5,2558.8,3.7194882]
[1726881641949,2.3042,2559.4,2558.6,3.7194882]
[1726881642139,2.3042,2559.4,2558.8,3.7194882]
[1726881642339,0.06856276,2559.3,2558.8,3.7194882]
[1726881643977,0.06856276,2559.3,2558.9,0.07814293]
[1726881644179,0.06856276,2559.3,2558.8,3.7194882]
[1726881647351,2.3042,2559.2,2558.4,3.0]
[1726881647552,2.3042,2559.2,2558.5,0.67194882]
[1726881647875,2.3042,2559.0,2558.4,3.0]
[1726881648188,0.06820094,2558.9,2558.1,3.7194882]
[1726881648493,0.06820094,2558.9,2557.8,2.4051]
[1726881648494,2.3042,2558.8,2557.9,3.7194882]
[1726881648778,2.37210797,2558.8,2557.9,3.7194882]
[1726881649370,2.3042,2558.6,2557.7,3.7194882]
[1726881649571,2.4871,2558.4,2557.9,3.7194882]
[1726881649777,2.4871,2558.4,2558.0,0.07817214]
[1726881649986,2.4871,2558.4,2557.9,3.7194882]
[1726881649987,0.06763565,2558.3,2557.9,3.7194882]
[1726881651245,0.06763565,2558.3,2558.1,3.7194882]
[1726881651441,2.4871,2558.7,2558.1,3.7194882]
[1726881651655,0.06779977,2558.6,2558.4,3.7194882]
[1726881651854,2.4871,2559.0,2558.5,0.07815605]
[1726881652078,0.0678679,2558.9,2558.5,0.07815605]
[1726881652656,0.0678679,2558.9,2558.4,3.7194882]
[1726881653483,0.0678679,2558.9,2558.3,3.0]
[1726881653758,0.0678679,2558.9,2558.3,0.7319387]
[1726881653905,0.0678679,2558.9,2558.2,0.59989882]
[1726881654403,2.4871,2558.6,2557.8,5.9989882]
[1726881654810,0.06791506,2558.5,2557.8,5.9989882]
[1726881654963,0.06791506,2558.5,2557.8,3.7194882]
[1726881655164,2.4423,2558.4,2557.8,3.7194882]
[1726881655702,0.06784583,2558.3,2557.6,3.7194882]
[1726881655902,0.06784583,2558.3,2557.7,0.37194882]
[1726881657312,2.4423,2558.2,2557.7,0.37194882]
[1726881657498,2.4423,2558.2,2557.6,3.7194882]
[1726881657685,0.06756247,2558.1,2557.7,0.07818142]
[1726881658207,0.06756247,2558.1,2557.8,3.7194882]
[1726881659096,0.06756247,2558.1,2557.6,3.7194882]
[1726881660211,0.06756247,2558.1,2557.4,3.7194882]
[1726881660516,2.4423,2557.6,2557.1,0.0378858]
[1726881661008,0.06729285,2557.5,2557.1,0.0378858]
[1726881661166,0.06729285,2557.5,2557.1,0.4136232]
[1726881661933,0.06729285,2557.5,2557.1,3.4136232]
[1726881662646,0.06729285,2557.5,2557.4,3.7194882]
[1726881663135,9.8123,2558.0,2557.5,3.0]
[1726881663500,9.8123,2558.0,2557.5,3.07818518]
[1726881663701,9.8123,2558.0,2557.6,4.63298554]
[1726881665091,7.37,2558.0,2557.8,3.7194882]
[1726881665299,2.4423,2558.2,2557.8,3.7194882]
[1726881665300,2.4423,2558.2,2557.9,3.0]
[1726881666904,2.4423,2558.2,2557.7,3.0]
[1726881670178,9.7364,2558.5,2558.0,3.7194882]
[1726881670462,9.7364,2558.5,2558.1,0.07817208]
[1726881670826,9.7364,2558.5,2558.0,3.7194882]
[1726881671328,7.37,2558.5,2558.2,3.7194882]
[1726881671838,7.37,2558.5,2558.0,3.79765732]
[1726881672155,7.37,2558.5,2558.1,0.60860573]
[1726881673925,7.37,2558.5,2557.7,3.47111668]
[1726881673926,2.3664,2558.4,2557.7,3.47111668]
[1726881674231,2.3664,2558.4,2557.4,3.7194882]
[1726881674432,2.3664,2558.4,2557.8,3.7194882]
[1726881675261,2.3664,2558.4,2557.1,3.757374]
[1726881675262,0.06767215,2558.3,2558.0,3.7194882]
[1726881676130,0.06767215,2558.3,2558.2,3.7194882]
[1726881676340,0.06767215,2558.3,2558.2,4.09925397]
[1726881676545,7.37,2558.5,2558.2,4.09925397]
[1726881676741,0.06763648,2558.3,2558.2,0.37976577]
[1726881676968,9.7296,2559.0,2558.3,5.3615]
[1726881677160,9.7296,2559.3,2558.8,3.7194882]
[1726881677557,2.3596,2559.3,2558.8,3.7194882]
[1726881677870,2.3596,2559.3,2558.8,6.0809882]
[1726881678243,2.3596,2559.3,2558.9,0.60809882]
[1726881678449,2.3596,2559.3,2558.6,3.7194882]
[1726881679356,2.3596,2559.3,2558.5,3.0]
[1726881679578,2.3596,2559.3,2558.3,3.0]
[1726881679883,2.3596,2559.1,2558.3,3.0]
[1726881680255,2.3596,2559.1,2558.4,3.7194882]
[1726881680592,0.55,2559.0,2558.2,6.0809882]
[1726881683187,0.55,2559.0,2558.2,6.15915048]
[1726881683388,0.55,2559.0,2558.2,6.0809882]
[1726881686301,0.55,2559.0,2558.4,3.7194882]
[1726881686825,2.3596,2559.1,2558.8,3.7194882]
[1726881687133,9.7296,2559.4,2559.0,3.7194882]
[1726881687333,2.3596,2559.4,2559.0,3.7194882]
[1726881688131,2.3596,2559.4,2558.9,0.37194882]
[1726881688333,2.3596,2559.4,2558.6,3.7194882]
[1726881688544,0.55,2559.3,2558.6,3.7194882]
[1726881689633,2.3175,2559.2,2558.6,3.7194882]
[1726881690446,0.06574644,2559.1,2558.6,3.7194882]
[1726881690643,0.06574644,2559.1,2558.8,3.7194882]
[1726881690947,0.06574644,2559.1,2558.9,0.45791084]
[1726881691126,0.06574644,2559.1,2559.0,3.7194882]
[1726881691329,2.3175,2559.6,2559.0,3.7194882]
[1726881691828,0.06581821,2559.5,2559.0,3.7194882]
[1726881692205,0.06581821,2559.5,2559.0,3.7976244]
[1726881692410,0.06581821,2559.5,2559.1,0.65884886]
[1726881695353,0.06581821,2559.5,2558.9,3.0]
[1726881696057,2.3341,2559.4,2558.6,6.1305882]
[1726881696225,2.3341,2559.4,2558.6,3.7194882]
[1726881696553,0.06594876,2559.3,2558.6,3.7194882]
[1726881696753,0.06594876,2559.3,2558.6,3.79763912]
[1726881696934,0.06594876,2559.3,2558.7,0.37976391]
[1726881699640,2.3341,2559.2,2558.7,0.37976391]
[1726881699936,0.0658582,2559.1,2558.7,0.37976391]
[1726881700153,0.0658582,2559.1,2558.4,5.3553]
[1726881700154,2.3341,2558.9,2558.4,6.7194882]
[1726881700570,0.0656831,2558.8,2558.4,6.7194882]
[1726881700924,0.0656831,2558.8,2558.6,3.7194882]
[1726881701126,2.3341,2559.1,2558.6,3.7194882]
[1726881701366,0.06569284,2559.0,2558.6,3.7194882]
[1726881701521,0.06569284,2559.0,2558.7,0.37194882]
[1726881704083,0.06569284,2559.0,2558.5,3.0]
[1726881707373,0.06569284,2559.0,2558.6,3.79764879]
[1726881707547,0.06569284,2559.0,2558.8,3.7194882]
[1726881707747,0.06569284,2559.0,2558.9,0.07814613]
[1726881707968,7.37,2559.3,2558.9,0.07814613]
[1726881708196,7.37,2559.3,2559.0,3.7194882]
[1726881708483,2.3341,2559.4,2559.0,3.7194882]
[1726881708785,2.3341,2559.4,2558.9,0.69343956]
[1726881708786,2.3341,2559.4,2558.9,0.61529343]
[1726881710049,2.3341,2559.4,2558.6,3.7194882]
[1726881710588,2.3341,2559.4,2558.4,9.1232882]
[1726881711389,2.4183,2559.2,2558.4,6.7194882]
[1726881712460,2.4183,2559.2,2558.6,3.7194882]
[1726881712794,2.4183,2559.2,2559.0,3.7194882]
[1726881713099,2.4183,2559.4,2559.1,0.37194882]
[1726881713253,2.4183,2559.4,2559.0,3.7194882]
[1726881719116,2.2588,2559.7,2559.2,3.7194882]
[1726881719272,7.37,2559.8,2559.1,2.40594422]
[1726881719273,7.37,2559.8,2559.5,3.7194882]
[1726881719602,32.2588,2560.0,2559.5,4.09925016]
[1726881720180,32.2588,2560.0,2559.5,0.37976196]
[1726881720381,0.06609543,2559.9,2559.5,0.37976196]
[1726881720880,0.06609543,2559.9,2559.7,3.7194882]
[1726881721207,0.06609543,2559.9,2559.8,5.40591983]
[1726881721435,0.06609543,2559.9,2559.8,6.69040945]
[1726881722000,3.70049449,2560.0,2559.9,5.8778]
[1726881722204,0.0378858,2560.2,2559.9,7.75661956]
[1726881722426,0.0378858,2560.2,2560.1,9.5972882]
[1726881723071,7.37,2561.1,2560.1,7.2694882]
[1726881723382,0.0378858,2561.7,2560.0,0.94517984]
[1726881723383,0.0378858,2561.7,2560.8,3.7194882]
[1726881723612,0.0378858,2561.7,2560.8,6.7194882]
[1726881727202,2.2588,2561.2,2560.6,3.7194882]
[1726881727407,2.2588,2561.2,2560.8,3.7194882]
[1726881727569,2.2588,2561.4,2560.8,3.7194882]
[1726881728094,7.37,2561.5,2560.8,3.7194882]
[1726881728293,7.37,2561.5,2560.8,6.7194882]
[1726881728464,7.37,2561.5,2560.8,9.0472882]
[1726881729312,7.37,2561.5,2560.8,12.7667764]
[1726881729819,7.37,2561.5,2560.9,2.2643]
[1726881729974,0.0378858,2561.7,2560.7,0.60472882]
[1726881729975,0.0378858,2561.7,2561.4,3.7194882]
[1726881730176,0.0378858,2561.7,2561.6,3.7194882]
[1726881730376,0.0378858,2561.7,2561.6,3.79755301]
[1726881730685,0.0378858,2561.7,2561.6,3.7194882]
[1726881731008,0.0378858,2561.7,2561.5,3.0]
[1726881731176,0.0378858,2561.7,2561.6,3.7194882]
[1726881731370,0.0378858,2561.7,2561.5,3.67194882]
[1726881731926,0.0378858,2561.7,2561.0,5.9837882]
[1726881732214,0.0378858,2561.7,2561.2,3.7194882]
[1726881733378,0.0378858,2561.7,2561.2,3.79756059]
[1726881735010,0.0378858,2561.7,2561.2,3.7194882]
[1726881735011,2.4068,2561.6,2561.2,3.7194882]
[1726881735320,2.4068,2561.6,2561.2,3.79756258]
[1726881735519,2.4068,2561.6,2561.3,0.07807439]
[1726881735720,2.4068,2561.6,2561.2,3.79756259]
[1726881735920,0.0378858,2561.7,2561.4,3.7194882]
[1726881736131,0.0378858,2561.7,2561.5,0.07806398]
[1726881736295,0.0378858,2561.7,2561.6,3.7194882]
[1726881736818,0.0378858,2561.7,2561.5,3.0]
[1726881737017,0.0378858,2561.7,2561.6,4.39143702]
[1726881738320,0.10135748,2561.7,2561.5,3.0]
[1726881738528,0.0378858,2561.7,2561.3,3.0]
[1726881738827,0.06351782,2561.6,2561.0,3.7194882]
[1726881738992,0.06351782,2561.6,2561.2,3.7194882]
[1726881739181,0.0378858,2561.7,2561.1,0.67727449]
[1726881739378,0.06346906,2561.5,2561.1,0.67727449]
[1726881739622,0.06349172,2561.6,2561.2,3.7194882]
[1726881739822,0.0378858,2561.7,2561.4,3.7194882]
[1726881740024,0.0378858,2561.7,2561.5,0.07806895]
[1726881740994,0.0378858,2561.7,2561.4,0.07806907]
[1726881741389,0.0378858,2561.7,2561.3,3.07806909]
[1726881741589,0.0378858,2561.7,2561.3,3.8177447]
[1726881743301,0.0378858,2561.7,2561.3,3.0]
[1726881744239,0.55,2561.6,2561.0,3.79756295]
[1726881744441,0.55,2561.6,2561.0,3.79756937]
[1726881745643,0.0378858,2561.7,2561.4,3.7194882]
[1726881745793,0.0378858,2561.7,2561.2,3.0]
[1726881745794,0.0378858,2561.7,2561.6,3.7194882]
[1726881746002,0.0378858,2561.7,2561.6,7.16949652]
[1726881746298,0.0378858,2561.7,2561.6,9.44199652]
[1726881746511,0.0378858,2561.7,2561.6,9.36393702]
[1726881751738,0.0378858,2562.5,2561.6,9.36393702]
[1726881751739,0.0378858,2562.5,2561.8,2.433]
[1726881751938,0.0378858,2562.5,2562.4,6.7194882]
[1726881752252,0.0378858,2562.5,2562.4,9.82443702]
[1726881753105,0.0378858,2562.5,2562.4,7.39143702]
[1726881754317,0.0378858,2562.5,2562.2,6.7194882]
[1726881754753,0.0378858,2562.5,2562.3,0.07804138]
[1726881757238,0.0378858,2562.5,2562.2,6.7194882]
[1726881757439,0.0378858,2562.5,2562.3,0.07804051]
[1726881757756,0.0378858,2562.5,2562.2,6.7194882]
[1726881757962,0.0378858,2562.5,2562.3,0.67194882]
[1726881758526,0.0378858,2562.5,2562.1,3.0]
[1726881759018,0.0378858,2562.5,2562.1,3.07804544]
[1726881759157,0.0378858,2562.5,2562.1,3.0]
[1726881759570,0.0378858,2562.5,2562.1,3.07804617]
[1726881762872,0.0378858,2562.5,2562.2,3.7194882]
[1726881763078,0.0378858,2562.5,2562.4,3.7194882]
[1726881764764,0.0378858,2562.5,2562.2,4.39924164]
[1726881764964,0.0378858,2562.5,2562.3,3.0]
[1726881765382,0.06188132,2562.4,2562.3,3.0]
[1726881766287,0.06188132,2562.4,2562.2,3.79753226]
[1726881766521,0.06188132,2562.4,2562.2,4.47728549]
[1726881767188,0.06188132,2562.4,2562.3,3.0]
[1726881767389,0.06188132,2562.4,2562.3,3.0780337]
[1726881768686,0.06188132,2562.4,2562.3,3.0]
[1726881772107,2.53088132,2562.4,2562.0,6.7194882]
[1726881773267,2.53088132,2562.4,2562.0,7.39924188]
[1726881773469,0.06188132,2562.4,2562.2,3.7194882]
[1726881773706,0.06188132,2562.4,2562.3,0.07804589]
[1726881774215,0.06188132,2562.4,2562.3,0.07803918]
[1726881775279,0.06188132,2562.4,2562.2,3.7194882]
[1726881776367,0.06188132,2562.4,2562.3,0.07804582]
[1726881777021,0.06188132,2562.4,2562.3,0.45779922]
[1726881777518,0.06188132,2562.4,2562.3,3.45779922]
[1726881777722,0.06188132,2562.4,2562.3,9.44038742]
[1726881777885,0.06188132,2562.4,2562.3,9.3623416]
[1726881778207,0.06188132,2562.4,2562.3,5.6428534]
[1726881778410,0.06188132,2562.4,2562.3,5.72087955]
[1726881778921,0.06188132,2562.4,2562.3,5.6428534]
[1726881779414,0.06188132,2562.4,2562.3,5.72088349]
[1726881779583,0.06188132,2562.4,2562.3,5.6428534]
[1726881779800,0.06188132,2562.4,2562.3,3.3797534]
[1726881779970,0.06188132,2562.4,2562.3,3.45779219]
[1726881780310,0.06188132,2562.4,2562.3,3.3797534]
[1726881780870,0.06188132,2562.4,2562.3,3.45779534]
[1726881784426,0.06188132,2562.4,2562.3,9.44038354]
[1726881784626,0.06188132,2562.4,2562.3,9.3623416]
[1726881786153,0.06188132,2562.4,2562.3,5.6428534]
[1726881786451,0.06188132,2562.4,2562.3,5.72087985]
[1726881786814,0.06188132,2562.4,2562.3,9.44036805]
[1726881787037,0.06188132,2562.4,2562.3,9.3623416]
[1726881789194,0.06188132,2562.4,2562.3,5.6428534]
[1726881789407,0.06188132,2562.4,2562.3,5.72088207]
[1726881789895,0.06188132,2562.4,2562.3,9.44037027]
[1726881790052,0.06188132,2562.4,2562.3,9.3623416]
[1726881791616,0.06188132,2562.4,2562.3,5.6428534]
[1726881791770,0.06188132,2562.4,2562.3,9.44036734]
[1726881791972,0.06188132,2562.4,2562.3,5.6428534]
[1726881792170,0.06188132,2562.4,2562.3,5.72087923]
[1726881792925,0.06188132,2562.4,2562.3,9.44036743]
[1726881793149,0.06188132,2562.4,2562.3,9.3623416]
[1726881793728,0.06188132,2562.4,2562.3,9.9123416]
[1726881794029,0.06188132,2562.4,2562.3,12.76290685]
[1726881794889,7.37,2563.1,2562.5,3.0]
[1726881795089,0.0378858,2563.3,2563.1,3.0]
[1726881795289,0.0378858,2563.3,2563.2,6.7975005]
[1726881795948,0.0378858,2563.3,2563.2,9.1289882]
[1726881801593,0.0378858,2563.3,2563.2,6.7194882]
[1726881801934,0.0378858,2563.3,2563.2,7.63238702]
[1726881802888,0.09104249,2563.3,2563.2,7.63238702]
[1726881804492,0.09104249,2563.3,2563.2,10.04188702]
[1726881805089,0.0378858,2563.3,2563.2,10.04188702]
[1726881807744,0.0378858,2563.3,2563.2,7.63238702]
[1726881808092,0.09088853,2563.3,2563.2,7.63238702]
[1726881808296,0.0378858,2563.3,2563.2,7.63238702]
[1726881808801,0.09091334,2563.3,2563.2,7.63238702]
[1726881810914,0.09091334,2563.3,2563.2,9.97518702]
[1726881811341,7.37,2563.9,2563.3,3.0]
[1726881811663,2.4278858,2564.0,2563.8,3.7194882]
[1726881811801,2.4278858,2564.0,2563.9,3.0779956]
[1726881813338,2.4278858,2564.0,2563.9,3.0]
[1726881814196,0.0378858,2564.0,2563.9,5.42079799]
[1726881814458,0.0378858,2564.0,2563.9,5.42078704]
[1726881814753,2.4879,2565.1,2564.1,3.55]
[1726881815048,2.4879,2565.1,2564.7,6.7194882]
[1726881819141,2.4879,2565.4,2564.7,9.1225882]
[1726881819547,0.0865416,2564.8,2564.7,9.1225882]
[1726881819854,0.08652323,2564.8,2564.7,9.1225882]
[1726881820011,0.08652323,2564.8,2564.7,10.03484702]
[1726881820198,0.0378858,2564.8,2564.7,10.03484702]
[1726881820399,0.0378858,2564.8,2564.7,13.75433522]
[1726881820601,0.0378858,2564.8,2564.7,10.03484702]
[1726881821201,0.0378858,2564.8,2564.7,13.75433522]
[1726881821675,0.0378858,2564.8,2564.7,10.03484702]
[1726881821938,0.0378858,2564.8,2564.7,7.63174702]
[1726881822744,0.0866239,2564.8,2564.7,7.63174702]
[1726881822944,0.0378858,2564.8,2564.7,7.63174702]
[1726881823234,0.0866239,2564.8,2564.7,7.63174702]
[1726881823819,0.0866239,2564.8,2564.5,3.7194882]
[1726881824002,0.0378858,2564.8,2564.5,3.7194882]
[1726881824901,2.3892,2564.7,2564.3,3.7194882]
[1726881825527,0.04843903,2564.6,2564.4,3.0]
[1726881825931,0.04843903,2564.6,2564.4,3.0779801]
[1726881826131,0.04843903,2564.6,2563.9,3.25382752]
[1726881826132,2.3892,2564.5,2564.1,3.7194882]
[1726881826504,0.04864769,2564.4,2564.1,3.7194882]
[1726881826749,2.3892,2564.3,2563.9,3.7194882]
[1726881826964,2.3892,2564.3,2563.9,4.09143702]
[1726881827123,0.04860247,2564.2,2563.9,4.09143702]
[1726881827331,2.3892,2564.3,2563.9,4.09143702]
[1726881827519,0.04857986,2564.1,2563.9,4.09143702]
[1726881827855,2.3892,2564.3,2563.9,4.09143702]
[1726881828156,2.3892,2564.3,2564.0,3.0]
[1726881829028,2.3892,2564.3,2563.6,0.07799135]
[1726881829029,2.3892,2564.3,2563.7,3.7194882]
[1726881829364,2.3892,2564.3,2563.2,2.3398]
[1726881829365,2.62812,2564.3,2563.9,3.7194882]
[1726881829521,2.3892,2564.3,2563.9,3.7194882]
[1726881829854,0.04860247,2564.2,2563.9,3.7194882]
[1726881830210,2.3892,2564.3,2564.1,3.7194882]
[1726881830420,0.04829717,2564.2,2564.1,3.79747965]
[1726881830618,2.3892,2564.3,2564.1,3.79747965]
[1726881830928,2.3892,2564.3,2564.2,3.07799147]
[1726881831462,2.4418,2564.7,2564.2,3.07799147]
[1726881831619,2.4418,2564.7,2564.3,3.7194882]
[1726881831819,2.4418,2564.7,2564.4,0.07798107]
[1726881832315,2.4418,2564.7,2564.5,0.07798106]
[1726881832521,2.4418,2564.7,2564.4,3.07797727]
[1726881832721,2.4418,2564.7,2564.4,3.0]
[1726881832963,2.4418,2564.7,2564.4,3.07797818]
[1726881833958,2.4418,2564.7,2564.4,3.0]
[1726881834978,2.4418,2564.7,2564.5,0.07797793]
[1726881835179,0.0378858,2564.8,2564.5,3.79746613]
[1726881835425,0.0378858,2564.8,2564.7,3.7194882]
[1726881836014,0.0378858,2564.8,2564.7,6.7194882]
[1726881836196,0.0378858,2564.8,2564.7,6.79745122]
[1726881836398,0.0378858,2564.8,2564.7,7.72011634]
[1726881838010,0.0378858,2564.8,2564.7,7.64215332]